bitfinex-derivatives/quotes_ETHF0:USTF0_20250205
["timestamp","ask_amount","ask_price","bid_price","bid_amount"]
[1738770400874,6.55830708,2768.4,2767.4,3.2078]
[1738770402070,6.55830708,2768.4,2767.7,3.2078]
[1738770402566,6.55830708,2768.4,2767.8,4.75284078]
[1738770403271,0.00541311,2768.8,2768.1,3.2078]
[1738770403470,0.00541311,2768.8,2768.7,3.2078]
[1738770403673,3.35050708,2770.0,2768.7,3.2078]
[1738770403872,3.35050708,2770.4,2769.5,3.2078]
[1738770404073,3.35050708,2770.8,2769.8,3.2078]
[1738770404464,3.2078,2770.2,2769.5,3.2078]
[1738770404669,3.35050708,2770.4,2769.5,3.2078]
[1738770404870,0.00541311,2770.1,2769.6,0.00541311]
[1738770405870,0.00541311,2770.1,2769.9,3.2078]
[1738770406376,0.00541311,2770.1,2770.0,4.69495525]
[1738770406570,6.55830708,2771.2,2770.0,4.69495525]
[1738770406772,3.35050708,2771.7,2770.5,3.2078]
[1738770406975,3.35050708,2771.7,2771.1,3.2078]
[1738770408082,0.00541311,2771.7,2771.1,3.21321311]
[1738770408287,0.00541311,2771.7,2771.4,3.2078]
[1738770409578,0.00541311,2771.7,2771.1,3.21321311]
[1738770409973,3.35050708,2771.3,2771.1,0.00541311]
[1738770410175,3.2078,2771.2,2770.0,3.2078]
[1738770410371,5.00541311,2771.7,2770.0,3.2078]
[1738770410372,3.2078,2770.6,2770.0,3.2078]
[1738770410570,3.2078,2770.6,2769.9,3.2078]
[1738770411078,3.2078,2771.6,2770.4,3.2078]
[1738770411277,0.00541311,2771.7,2771.0,3.2078]
[1738770411278,3.21321311,2771.7,2771.0,3.2078]
[1738770411576,3.2078,2771.1,2770.7,0.00541311]
[1738770411776,3.35050708,2770.9,2770.7,0.00541311]
[1738770412881,3.2078,2771.1,2770.7,0.00541311]
[1738770413077,3.35050708,2770.9,2770.7,0.00541311]
[1738770413481,3.2078,2770.8,2770.7,0.00541311]
[1738770414276,0.72168,2770.7,2769.9,3.2078]
[1738770414477,3.35050708,2770.5,2769.9,3.2078]
[1738770415490,3.35592019,2770.5,2769.9,3.21321311]
[1738770415986,3.2078,2770.0,2769.9,0.00541311]
[1738770416579,3.92964,2770.0,2769.9,0.00541311]
[1738770417992,0.72199,2769.5,2768.5,3.2078]
[1738770418282,1.614,2770.3,2768.2,0.3616]
[1738770418283,3.2078,2768.9,2768.2,3.2078]
[1738770418487,3.2078,2768.9,2768.1,3.2078]
[1738770418786,3.35050708,2768.6,2768.1,3.2078]
[1738770418980,3.2078,2768.9,2768.2,4.71050962]
[1738770419181,0.00541311,2768.6,2768.2,4.71050962]
[1738770419379,0.00541311,2768.6,2768.0,4.71050962]
[1738770419687,0.00541311,2768.6,2767.9,0.5865]
[1738770419882,3.35592019,2768.6,2767.8,3.2078]
[1738770420088,3.35592019,2768.6,2767.5,3.2078]
[1738770420089,6.56372019,2768.6,2767.5,3.2078]
[1738770420278,6.56372019,2768.6,2767.9,7.81602998]
[1738770420784,6.56372019,2768.6,2767.9,3.2078]
[1738770420985,6.56372019,2768.6,2768.0,4.58944547]
[1738770421183,6.56372019,2768.6,2767.5,3.2078]
[1738770421383,3.21321311,2768.6,2768.1,3.2078]
[1738770421583,3.21321311,2768.6,2768.1,7.79724547]
[1738770421780,0.00541311,2768.6,2768.1,3.2078]
[1738770421984,0.00541311,2768.6,2768.4,3.2078]
[1738770422186,0.00541311,2768.6,2768.2,5.18574353]
[1738770422386,0.00541311,2768.6,2768.5,4.60794353]
[1738770422592,0.00541311,2768.6,2768.4,3.2078]
[1738770422788,0.00541311,2768.6,2768.3,4.60794353]
[1738770422978,3.35592019,2768.6,2767.4,1.614]
[1738770423186,3.35592019,2768.6,2768.0,3.2078]
[1738770423788,6.55830708,2768.2,2767.1,3.7943]
[1738770423989,3.2078,2767.6,2766.8,3.2078]
[1738770424185,3.35050708,2767.8,2766.8,3.2078]
[1738770424492,0.72255,2767.3,2766.9,4.79440448]
[1738770424793,3.35050708,2767.0,2766.5,3.2078]
[1738770425296,6.55830708,2766.6,2765.6,3.7902]
[1738770425587,3.35050708,2766.6,2765.9,3.2078]
[1738770426087,3.35050708,2766.6,2766.0,4.59336571]
[1738770426290,3.2078,2766.1,2764.4,11.62913617]
[1738770426487,3.35050708,2765.0,2764.4,11.62913617]
[1738770426996,3.35050708,2765.4,2764.7,3.2078]
[1738770427202,3.35050708,2765.4,2764.4,8.42133617]
[1738770427492,3.2078,2765.3,2764.4,8.42133617]
[1738770427887,3.35050708,2765.0,2764.4,8.42133617]
[1738770428281,3.35050708,2765.0,2764.0,3.2078]
[1738770428494,3.2078,2764.9,2764.0,3.2078]
[1738770429184,3.35050708,2764.6,2763.8,0.5361]
[1738770429386,3.35050708,2764.6,2764.1,4.76979365]
[1738770429585,3.35050708,2765.0,2764.3,3.2078]
[1738770429890,3.35050708,2765.0,2764.4,4.76801794]
[1738770430388,3.2078,2765.2,2764.4,4.76801794]
[1738770430986,3.35050708,2765.0,2764.3,3.2078]
[1738770431187,3.35050708,2764.6,2763.8,0.5361]
[1738770431391,3.2078,2764.4,2763.8,0.5361]
[1738770431598,3.2078,2764.5,2763.8,0.5361]
[1738770431791,6.55830708,2764.2,2763.4,3.2078]
[1738770431991,3.2078,2763.7,2763.2,0.14523526]
[1738770432498,3.21322309,2763.7,2763.2,0.14523526]
[1738770432694,0.00542309,2763.7,2763.2,0.14523526]
[1738770432993,3.35050708,2763.4,2763.2,0.14523526]
[1738770433999,3.35050708,2763.4,2761.7,3.2078]
[1738770434000,8.35050708,2763.4,2761.7,3.2078]
[1738770434192,0.00542309,2763.7,2762.0,3.2078]
[1738770434193,3.35050708,2762.8,2762.0,3.2078]
[1738770434393,3.35050708,2763.2,2762.6,3.2078]
[1738770434596,3.35050708,2763.6,2762.9,3.2078]
[1738770434891,3.2078,2763.6,2762.7,4.79455947]
[1738770435093,3.35050708,2763.2,2762.5,3.2078]
[1738770435290,3.35050708,2762.8,2762.5,3.2078]
[1738770435697,3.35050708,2763.2,2762.6,4.65126799]
[1738770435897,3.35050708,2763.2,2762.6,45.45126799]
[1738770436489,3.35050708,2763.2,2762.8,3.2078]
[1738770436698,3.35050708,2763.6,2762.8,3.2078]
[1738770436898,3.35050708,2763.6,2762.9,4.79287311]
[1738770437097,3.2078,2763.5,2762.8,3.2078]
[1738770437300,3.35050708,2763.2,2762.8,3.2078]
[1738770438597,3.2078,2763.5,2762.9,4.72546419]
[1738770438905,3.2078,2763.5,2762.8,3.2078]
[1738770439399,3.35050708,2763.6,2762.8,3.2078]
[1738770439793,0.00542309,2763.7,2763.1,3.2078]
[1738770439992,0.00542309,2763.7,2763.4,3.2078]
[1738770440394,9.98e-06,2763.7,2763.5,4.77905028]
[1738770440999,3.35050708,2763.6,2763.1,3.2078]
[1738770441701,9.98e-06,2763.7,2763.4,3.2078]
[1738770442196,9.98e-06,2763.7,2763.5,4.76751502]
[1738770442400,9.98e-06,2763.7,2763.1,3.21322309]
[1738770442705,9.98e-06,2763.7,2763.2,4.76751502]
[1738770442896,9.98e-06,2763.7,2763.4,3.2078]
[1738770443298,9.98e-06,2763.7,2763.5,4.63503311]
[1738770443899,9.98e-06,2763.7,2763.4,3.2078]
[1738770445009,9.98e-06,2763.7,2763.5,4.72538788]
[1738770445206,9.98e-06,2763.7,2763.4,3.2078]
[1738770446297,9.98e-06,2763.7,2763.1,3.21322309]
[1738770446494,6.55830708,2763.6,2763.1,0.00542309]
[1738770446695,0.72357,2763.4,2763.1,0.00542309]
[1738770447002,6.55830708,2763.6,2763.1,0.00542309]
[1738770447397,3.2078,2763.3,2763.1,0.00542309]
[1738770447597,3.35050708,2763.2,2763.1,0.00542309]
[1738770448004,8.35050708,2763.2,2762.0,3.2078]
[1738770448199,3.35050708,2762.3,2762.0,3.2078]
[1738770448402,3.35050708,2762.3,2761.6,3.2078]
[1738770449109,6.55830708,2762.3,2761.6,3.2078]
[1738770449304,3.35050708,2761.9,2761.0,0.5853]
[1738770449499,3.35050708,2761.9,2761.2,3.2078]
[1738770449913,0.00542309,2762.2,2761.3,4.73614205]
[1738770450305,3.35050708,2761.5,2761.0,3.2078]
[1738770450610,3.35050708,2761.5,2760.5,3.2078]
[1738770451004,3.35050708,2761.5,2760.5,7.96889277]
[1738770451608,3.35050708,2761.5,2760.8,3.2078]
[1738770451907,3.35050708,2761.5,2760.6,3.2078]
[1738770452113,3.35050708,2761.5,2760.9,7.85859519]
[1738770452316,3.35050708,2761.5,2761.3,3.2078]
[1738770452505,0.00542309,2762.2,2761.4,0.72408]
[1738770452706,0.00542309,2762.2,2762.1,3.2078]
[1738770453012,3.2078,2763.5,2762.1,8.58761654]
[1738770453013,3.35050708,2763.5,2762.1,8.58761654]
[1738770453306,6.55830708,2763.5,2762.9,3.2078]
[1738770453507,6.55830708,2763.5,2762.3,3.2078]
[1738770453710,3.35050708,2763.1,2762.3,3.2078]
[1738770453902,3.2078,2763.2,2762.3,7.82347069]
[1738770454107,3.35050708,2763.0,2762.3,4.61567069]
[1738770454400,3.2078,2762.9,2762.4,0.00543321]
[1738770454607,6.55830708,2762.6,2762.4,0.00543321]
[1738770454806,3.35050708,2762.6,2762.4,0.00543321]
[1738770455005,6.55830708,2762.6,2762.4,0.00543321]
[1738770456714,3.2078,2762.6,2762.4,0.00543321]
[1738770457011,3.35594029,2763.0,2762.5,4.63118988]
[1738770457012,0.00543321,2763.0,2762.5,4.63118988]
[1738770457305,0.00543321,2763.0,2762.9,3.2078]
[1738770457708,0.00543321,2763.0,2762.9,12.83898988]
[1738770457908,1.663,2764.6,2762.9,12.83898988]
[1738770457909,3.35050708,2764.2,2762.9,12.83898988]
[1738770458110,3.35050708,2764.2,2763.4,3.2078]
[1738770458702,3.35050708,2764.7,2764.0,3.2078]
[1738770458908,3.2078,2764.2,2763.7,3.2078]
[1738770459304,3.2078,2764.2,2763.7,0.00543321]
[1738770461112,3.2078,2763.8,2763.7,0.00543321]
[1738770461410,3.2078,2763.8,2762.7,3.2078]
[1738770461611,3.2078,2763.5,2762.7,3.2078]
[1738770461809,3.35050708,2764.0,2763.0,3.2078]
[1738770462212,3.35050708,2764.0,2762.1,40.8]
[1738770462213,6.55830708,2763.1,2762.1,4.747867]
[1738770462416,0.7237,2762.9,2761.8,3.2078]
[1738770462616,3.2078,2762.5,2761.7,3.2078]
[1738770462813,3.2078,2762.5,2762.3,0.00543321]
[1738770463115,3.2078,2762.7,2762.3,0.00543321]
[1738770463410,3.21323321,2762.7,2762.3,0.00543321]
[1738770463611,0.00543321,2762.7,2762.3,0.00543321]
[1738770463814,0.00543321,2762.7,2762.5,3.2078]
[1738770464012,0.00543321,2762.7,2762.4,4.66111798]
[1738770464317,0.00543321,2762.7,2762.5,3.2078]
[1738770466514,0.00543321,2762.7,2762.3,0.00543321]
[1738770466515,3.35594029,2762.7,2762.3,0.00543321]
[1738770466709,6.56374029,2762.7,2762.3,0.00543321]
[1738770467018,3.2078,2762.4,2762.3,0.00543321]
[1738770467419,3.35594029,2762.7,2762.3,0.00543321]
[1738770467818,0.00543321,2762.7,2762.3,0.00543321]
[1738770468816,0.00543321,2762.7,2762.3,3.21323321]
[1738770469014,0.00543321,2762.7,2762.6,3.2078]
[1738770469412,0.00543321,2762.7,2762.6,7.96958878]
[1738770469815,0.5499,2764.1,2762.8,0.72371]
[1738770470025,3.35050708,2764.3,2763.3,3.2078]
[1738770470218,4.8868,2764.6,2763.6,3.2078]
[1738770470616,3.35050708,2764.7,2763.8,3.2078]
[1738770471121,0.00543321,2764.5,2764.0,0.00543321]
[1738770471418,0.00543321,2764.5,2764.4,3.2078]
[1738770471718,12.19876547,2765.8,2764.4,13.01867577]
[1738770471920,12.19876547,2765.8,2765.2,3.2078]
[1738770472323,15.40656547,2765.8,2765.2,3.2078]
[1738770472717,15.41198837,2765.8,2765.2,3.2132229]
[1738770472917,12.20418837,2765.8,2765.2,3.2132229]
[1738770473622,0.0054229,2765.8,2765.2,3.2132229]
[1738770474121,0.0054229,2765.8,2765.5,3.2078]
[1738770475013,0.0054229,2765.8,2765.2,0.0054229]
[1738770475216,6.55830708,2765.5,2765.2,0.0054229]
[1738770475523,0.0054229,2765.8,2765.2,0.0054229]
[1738770476020,0.0054229,2765.8,2765.2,3.2132229]
[1738770476418,0.0054229,2765.8,2765.5,3.2078]
[1738770476621,0.0054229,2765.8,2765.3,4.59787381]
[1738770476925,0.0054229,2765.8,2765.2,3.2132229]
[1738770477516,0.0054229,2765.8,2765.5,3.2078]
[1738770477917,12.19876547,2766.8,2765.6,5.23700506]
[1738770478123,12.19876547,2766.8,2766.0,3.2078]
[1738770478324,3.35050708,2766.7,2765.6,4.68120506]
[1738770478518,3.2078,2766.2,2765.4,3.2078]
[1738770479124,0.0054229,2766.1,2765.4,3.2078]
[1738770479322,3.35050708,2765.9,2765.4,3.2078]
[1738770479531,6.55830708,2765.9,2765.2,0.0054229]
[1738770479828,3.35050708,2765.5,2765.2,0.0054229]
[1738770480731,3.2078,2765.3,2765.2,0.0054229]
[1738770480928,3.2078,2765.3,2764.2,3.2078]
[1738770481124,8.35050708,2765.5,2764.2,3.2078]
[1738770481125,3.35050708,2765.1,2764.2,3.2078]
[1738770481532,0.72316,2765.0,2764.2,3.2078]
[1738770481823,3.35050708,2764.3,2763.6,3.2078]
[1738770482025,3.2078,2764.5,2763.6,3.2078]
[1738770482225,3.2078,2764.5,2763.7,0.0054229]
[1738770482425,3.2078,2764.5,2763.7,4.64729147]
[1738770482824,3.93107,2764.5,2763.7,0.0054229]
[1738770483029,4.07384708,2764.3,2763.7,0.0054229]
[1738770483230,3.2078,2764.2,2763.7,0.0054229]
[1738770484429,3.2078,2764.6,2763.7,0.0054229]
[1738770484623,3.2078,2764.6,2764.0,3.2078]
[1738770484928,3.2078,2764.6,2763.8,4.68990564]
[1738770485128,3.2078,2764.6,2763.7,0.0054229]
[1738770486532,1.0934229,2764.9,2763.9,3.2078]
[1738770486533,0.0054229,2764.9,2763.9,3.2078]
[1738770486836,0.0054229,2764.9,2764.2,3.2078]
[1738770487027,0.0054229,2764.9,2764.5,3.2078]
[1738770487927,0.0054229,2764.9,2764.0,0.7234]
[1738770487928,0.0054229,2764.9,2764.8,3.2078]
[1738770488231,1.80677,2766.7,2764.8,3.2078]
[1738770488232,3.35050708,2766.3,2764.8,3.2078]
[1738770488437,3.35050708,2766.3,2765.3,3.2078]
[1738770488630,3.2078,2766.2,2765.3,3.2078]
[1738770489325,3.2078,2766.2,2764.4,0.29044069]
[1738770489326,3.35050708,2766.3,2765.5,0.0054229]
[1738770489529,0.0054229,2766.0,2765.5,0.0054229]
[1738770489731,3.2078,2765.9,2765.5,0.0054229]
[1738770490039,0.0054229,2766.0,2765.5,0.0054229]
[1738770490336,0.0054229,2766.0,2765.6,3.2078]
[1738770490531,0.0054229,2766.0,2765.9,3.2078]
[1738770490737,12.19876547,2767.7,2765.9,3.2078]
[1738770490738,3.35050708,2767.5,2765.9,3.2078]
[1738770490932,3.35050708,2767.5,2766.5,3.2078]
[1738770491132,12.19876547,2767.7,2766.9,3.2078]
[1738770491532,12.19876547,2767.7,2766.5,3.2078]
[1738770491732,12.19876547,2767.7,2766.6,3.2078]
[1738770491934,0.0054229,2767.4,2766.8,0.0054229]
[1738770492134,0.0054229,2767.4,2766.9,3.2078]
[1738770492335,0.0054229,2767.4,2766.9,4.74535297]
[1738770492544,0.0054229,2767.4,2766.8,0.0054229]
[1738770492930,0.0054229,2767.4,2767.0,3.2078]
[1738770493336,0.0054229,2767.4,2766.8,0.0054229]
[1738770493337,0.0054229,2767.4,2767.1,4.72180456]
[1738770493637,0.0054229,2767.4,2767.0,7.92960456]
[1738770493839,0.0054229,2767.4,2767.2,4.6990544]
[1738770494242,0.0054229,2767.4,2767.0,3.2078]
[1738770494443,0.0054229,2767.4,2767.3,7.9068544]
[1738770494745,12.19876547,2768.0,2767.3,3.2078]
[1738770495036,12.19876547,2768.0,2767.9,3.2078]
[1738770495545,12.19876547,2768.0,2767.9,7.94416769]
[1738770495843,12.19876547,2768.0,2767.9,3.2078]
[1738770496045,0.00346579,2768.2,2767.2,3.2078]
[1738770496240,3.2078,2767.7,2767.2,3.2078]
[1738770496439,0.00346579,2768.2,2767.3,4.74268524]
[1738770496440,3.21126579,2768.2,2767.3,4.74268524]
[1738770496835,0.00346579,2768.2,2767.2,3.2078]
[1738770497138,3.21126579,2768.2,2767.4,4.72014293]
[1738770497341,3.21126579,2768.2,2767.2,3.2078]
[1738770497745,3.35050708,2767.9,2766.9,3.2078]
[1738770497949,3.2078,2767.3,2766.4,0.5811]
[1738770498148,3.2078,2767.3,2766.5,3.2078]
[1738770498745,3.2078,2767.3,2766.4,0.5811]
[1738770499543,3.93036,2767.3,2766.2,3.2078]
[1738770499747,3.35050708,2767.1,2765.9,3.2078]
[1738770499944,3.35050708,2767.1,2766.3,3.2078]
[1738770500141,3.35050708,2767.5,2766.3,3.2078]
[1738770500348,0.00346579,2768.2,2767.0,3.2078]
[1738770500543,3.35050708,2767.9,2767.0,3.2078]
[1738770501447,0.5794,2768.1,2767.1,4.6053902]
[1738770502048,0.5794,2768.1,2767.3,3.2078]
[1738770502449,0.5794,2768.1,2767.4,4.7704574]
[1738770502645,0.00346579,2768.2,2767.4,4.7704574]
[1738770502854,3.2078,2767.7,2767.2,4.7704574]
[1738770503043,4.07289708,2767.9,2767.0,3.2078]
[1738770503044,3.35050708,2767.9,2767.0,3.2078]
[1738770503247,3.35050708,2767.9,2767.0,7.85723868]
[1738770503555,3.35050708,2767.9,2767.0,3.2078]
[1738770503751,3.2078,2767.7,2767.0,3.2078]
[1738770504457,3.2078,2767.7,2767.1,4.72510453]
[1738770505054,3.2078,2767.7,2767.3,3.2078]
[1738770505358,3.2078,2767.7,2767.4,4.63105536]
[1738770505856,0.00346579,2768.2,2767.4,4.63105536]
[1738770506647,0.00346579,2768.2,2767.6,3.2078]
[1738770506848,0.00346579,2768.2,2767.4,4.63105536]
[1738770506849,0.00346579,2768.2,2767.9,3.2078]
[1738770507052,3.2078,2769.5,2768.0,1.1112]
[1738770507252,3.2078,2769.5,2768.6,3.2078]
[1738770507448,3.2078,2769.2,2768.4,3.2078]
[1738770507650,3.2078,2769.2,2768.1,3.2078]
[1738770508054,3.2078,2769.7,2768.4,3.2078]
[1738770508255,3.2078,2769.7,2768.7,3.2078]
[1738770508452,3.7882,2770.2,2769.0,3.2078]
[1738770508857,7.13130708,2770.7,2769.6,3.2078]
[1738770509064,0.7217,2770.6,2769.3,3.2078]
[1738770509255,7.13130708,2770.7,2769.3,3.2078]
[1738770509557,7.13130708,2770.7,2769.2,40.8]
[1738770509558,0.573,2770.7,2769.7,0.0054229]
[1738770510256,3.2078,2770.6,2769.9,3.2078]
[1738770510655,3.2078,2770.6,2770.0,4.73367578]
[1738770511459,3.2078,2770.9,2770.2,3.2078]
[1738770512259,7.41592987,2771.5,2770.3,4.64048282]
[1738770512554,3.2078,2771.2,2770.5,3.2078]
[1738770512755,3.35050708,2771.9,2770.6,3.2078]
[1738770512958,3.2078,2771.7,2770.6,7.84828282]
[1738770513159,0.72152,2771.3,2770.3,3.2078]
[1738770513358,0.7215,2771.3,2770.3,3.2078]
[1738770513755,3.2078,2771.4,2770.3,3.2078]
[1738770514162,3.92929,2771.4,2770.3,3.2078]
[1738770514459,3.2078,2771.0,2770.3,3.2078]
[1738770514667,3.2078,2770.7,2769.9,3.2078]
[1738770515152,0.5767,2770.9,2770.0,4.64717656]
[1738770515355,0.5767,2770.9,2770.2,3.2078]
[1738770515559,3.2078,2771.2,2770.2,3.2078]
[1738770515854,7.5734807,2771.5,2770.2,3.2078]
[1738770516262,6.55830708,2771.5,2770.5,3.2078]
[1738770516461,7.27976708,2771.5,2770.5,3.2078]
[1738770516758,0.5767,2771.7,2770.8,3.2078]
[1738770517156,3.2078,2771.8,2770.8,3.2078]
[1738770517359,6.55830708,2772.3,2771.1,3.2078]
[1738770517662,3.2078,2772.0,2771.1,3.2078]
[1738770517960,7.27954708,2772.3,2771.4,0.00541301]
[1738770518157,3.2078,2771.9,2771.4,0.00541301]
[1738770518358,0.5772,2772.4,2771.4,3.21321301]
[1738770519063,3.2078,2771.8,2771.4,0.00541301]
[1738770519258,3.92924,2771.5,2771.4,0.00541301]
[1738770519561,3.92924,2771.5,2770.5,3.2078]
[1738770519562,3.2078,2771.5,2770.5,3.2078]
[1738770519762,3.2078,2772.2,2770.9,3.2078]
[1738770519953,0.72135,2771.9,2770.9,3.2078]
[1738770520157,0.72137,2771.8,2771.0,4.58775507]
[1738770520453,3.2078,2772.2,2770.9,3.2078]
[1738770520654,0.00538007,2771.7,2771.1,0.00541301]
[1738770520857,0.00538007,2771.7,2771.1,4.59316808]
[1738770521054,0.72152,2771.2,2771.1,0.00541301]
[1738770522560,3.7726,2771.4,2771.1,0.00541301]
[1738770522758,0.5648,2771.4,2771.1,0.00541301]
[1738770522959,0.00538007,2771.7,2771.1,0.00541301]
[1738770524462,0.72147,2771.5,2771.1,0.00541301]
[1738770524661,0.00538007,2771.7,2771.1,0.00541301]
[1738770525161,0.72152,2771.2,2771.1,0.00541301]
[1738770525367,3.2078,2771.2,2771.1,0.00541301]
[1738770525565,3.92923,2771.6,2771.1,0.00541301]
[1738770525765,3.2078,2771.6,2771.1,0.00541301]
[1738770527161,0.00538007,2771.7,2771.1,0.00541301]
[1738770527360,0.00538007,2771.7,2771.2,3.2078]
[1738770528762,0.00538007,2771.7,2771.3,4.7382777]
[1738770529061,0.00538007,2771.7,2771.5,3.2078]
[1738770529460,0.00538007,2771.7,2771.2,3.2078]
[1738770531358,0.00538007,2771.7,2771.1,0.00541301]
[1738770531359,0.00538007,2771.7,2771.5,3.2078]
[1738770531566,0.00538007,2771.7,2771.1,0.00541301]
[1738770531567,0.00538007,2771.7,2771.2,3.2078]
[1738770532658,0.00538007,2771.7,2771.5,3.2078]
[1738770532864,0.72113,2772.8,2771.5,3.2078]
[1738770533059,0.5538,2773.0,2771.8,3.2078]
[1738770533268,0.5507,2772.9,2771.8,3.2078]
[1738770533566,0.72112,2772.8,2771.8,3.2078]
[1738770533867,0.72117,2772.6,2771.8,3.2078]
[1738770534067,0.5507,2772.9,2771.8,3.2078]
[1738770534263,3.35050708,2772.7,2771.8,3.2078]
[1738770534468,0.72133,2772.0,2771.2,3.2078]
[1738770534667,0.72141,2771.7,2771.2,3.2078]
[1738770534864,3.35050708,2771.5,2771.1,0.00541301]
[1738770535065,6.55830708,2771.5,2771.1,0.00541301]
[1738770535270,0.72149,2771.4,2771.1,0.00541301]
[1738770535571,0.7215,2771.3,2771.1,0.00541301]
[1738770535774,7.10150708,2771.5,2771.1,0.00541301]
[1738770536076,0.72147,2771.4,2770.5,3.2078]
[1738770536769,7.82296708,2771.5,2770.5,3.2078]
[1738770536972,3.2078,2771.2,2770.5,3.2078]
[1738770537166,0.00541301,2771.3,2770.8,3.2078]
[1738770537363,0.00541301,2771.3,2770.7,0.00541301]
[1738770538269,0.00541301,2771.3,2770.8,3.2078]
[1738770538466,0.00541301,2771.3,2770.7,0.00541301]
[1738770539472,0.00541301,2771.3,2770.8,4.7959977]
[1738770539770,0.00541301,2771.3,2770.7,0.00541301]
[1738770539771,0.00541301,2771.3,2771.1,3.2078]
[1738770539967,0.00541301,2771.3,2770.8,3.2078]
[1738770540173,0.72692301,2771.3,2770.8,3.2078]
[1738770540374,0.00541301,2771.3,2770.8,3.2078]
[1738770540869,0.00541301,2771.3,2770.9,4.6032521]
[1738770541075,0.00541301,2771.3,2770.8,3.2078]
[1738770541977,3.2078,2770.9,2770.7,0.00541301]
[1738770542174,0.00541301,2771.3,2770.7,0.00541301]
[1738770543668,6.55830708,2771.1,2770.4,3.2078]
[1738770543870,3.2078,2770.5,2769.6,3.2078]
[1738770544269,3.35050708,2770.7,2769.6,3.2078]
[1738770544491,3.35050708,2770.7,2769.7,4.58406001]
[1738770544668,3.35050708,2771.1,2770.0,3.2078]
[1738770544972,3.2078,2771.0,2770.0,3.2078]
[1738770545172,3.2078,2771.0,2770.1,4.70105578]
[1738770545366,3.35050708,2771.1,2770.1,4.70105578]
[1738770545367,6.55830708,2771.1,2770.1,4.70105578]
[1738770545571,3.35050708,2771.1,2770.3,3.2078]
[1738770545768,0.00541301,2771.3,2770.6,3.2078]
[1738770547374,0.00541301,2771.3,2770.9,3.2078]
[1738770547578,0.00541301,2771.3,2771.2,3.2078]
[1738770547874,3.2078,2771.9,2771.2,3.2078]
[1738770548375,3.2078,2771.9,2770.8,3.2078]
[1738770548568,6.55830708,2771.9,2770.8,3.2078]
[1738770548769,6.55830708,2771.9,2771.1,3.2078]
[1738770548770,3.2078,2771.9,2771.1,3.2078]
[1738770548973,0.00541301,2771.6,2771.1,3.21321301]
[1738770549570,0.00541301,2771.6,2771.1,0.00541301]
[1738770550473,6.55830708,2771.5,2771.1,0.00541301]
[1738770550676,3.92932,2771.2,2771.1,0.00541301]
[1738770550973,3.2078,2771.2,2769.3,3.2078]
[1738770551175,3.92953,2770.4,2769.3,3.2078]
[1738770551371,0.72178,2770.3,2769.3,3.2078]
[1738770551576,0.544,2770.4,2769.3,3.2078]
[1738770551772,3.7518,2770.4,2769.4,4.72370322]
[1738770551976,0.00541301,2770.1,2769.6,0.00541301]
[1738770552377,3.2078,2770.0,2769.6,0.00541301]
[1738770553179,3.2078,2769.7,2769.6,0.00541301]
[1738770553377,6.55830708,2769.7,2768.7,1.1473]
[1738770553576,0.72197,2769.5,2768.2,3.49825997]
[1738770553778,3.2078,2769.4,2768.2,3.2078]
[1738770553982,3.2078,2769.4,2768.1,4.67617354]
[1738770554282,3.2078,2769.4,2768.2,3.2078]
[1738770554585,3.2078,2769.4,2768.5,0.00541301]
[1738770554989,3.2078,2769.4,2768.6,4.59859415]
[1738770555675,3.2078,2768.7,2768.5,0.00541301]
[1738770555887,3.2078,2768.7,2768.0,0.5341]
[1738770556383,0.5634,2769.2,2768.3,3.2078]
[1738770556384,3.2078,2769.0,2768.3,3.2078]
[1738770556585,3.2078,2769.3,2768.6,3.2078]
[1738770557088,0.00541301,2769.2,2768.9,3.2078]
[1738770557385,0.00541301,2769.2,2768.7,0.00541301]
[1738770557785,0.72746301,2769.2,2768.7,0.00541301]
[1738770557987,4.07797009,2769.2,2768.7,0.00541301]
[1738770558180,3.35592009,2769.2,2768.7,0.00541301]
[1738770559585,0.72207,2769.1,2768.7,0.00541301]
[1738770559788,3.2078,2769.0,2768.7,0.00541301]
[1738770560083,3.35050708,2768.8,2768.1,3.2078]
[1738770560288,3.2078,2768.6,2768.1,3.2078]
[1738770560692,3.35050708,2768.8,2768.1,3.2078]
[1738770561292,3.35050708,2768.8,2768.2,0.00541301]
[1738770561895,3.2078,2769.0,2768.2,0.00541301]
[1738770562588,3.2078,2769.0,2768.4,3.2078]
[1738770563390,0.00541301,2769.2,2768.7,3.2078]
[1738770563591,0.00541301,2769.2,2769.0,3.2078]
[1738770564291,12.19876547,2769.7,2769.1,4.69838583]
[1738770564493,12.19876547,2769.7,2769.5,3.2078]
[1738770564994,12.19876547,2769.7,2769.6,4.69838583]
[1738770565196,11.96333357,2769.7,2769.6,10.25918583]
[1738770565395,11.95250755,2769.7,2769.6,46.05918583]
[1738770565600,11.95250755,2769.7,2769.6,51.05918583]
[1738770566294,11.95250755,2769.7,2769.6,10.25918583]
[1738770566295,10.47076775,2769.7,2769.6,10.25918583]
[1738770566497,10.47076775,2769.7,2769.6,10.54585338]
[1738770566498,3.3705615,2769.7,2769.6,10.54585338]
[1738770566698,0.5892,2771.1,2769.6,10.54585338]
[1738770566902,0.5892,2771.1,2770.5,3.2078]
[1738770567202,4.51849,2771.1,2770.1,3.2078]
[1738770567395,0.72152,2771.0,2769.7,3.2078]
[1738770567593,0.5892,2771.1,2770.2,4.65278392]
[1738770567897,0.00541301,2770.9,2770.7,3.2078]
[1738770568305,3.35050708,2772.0,2770.7,3.2078]
[1738770568306,4.3373,2772.2,2770.8,4.77744475]
[1738770568504,1.1295,2772.2,2771.5,3.2078]
[1738770568705,0.5704,2772.6,2771.8,3.2078]
[1738770568905,0.5704,2772.6,2772.1,3.2078]
[1738770569298,0.5704,2772.6,2771.7,3.2078]
[1738770569602,0.57581301,2772.6,2772.1,0.00541301]
[1738770570002,3.2078,2772.3,2771.0,3.2078]
[1738770570196,3.2078,2771.7,2771.0,3.2078]
[1738770570597,0.7214,2771.5,2770.3,0.9785]
[1738770570803,3.2078,2771.4,2770.5,3.2078]
[1738770571206,0.00541301,2771.2,2770.7,0.00541301]
[1738770571706,3.2078,2771.1,2770.7,0.00541301]
[1738770572109,0.00541301,2771.2,2770.7,0.00541301]
[1738770572309,0.72687301,2771.2,2770.7,0.00541301]
[1738770572609,0.72688301,2771.2,2770.7,0.00541301]
[1738770572807,0.00541301,2771.2,2770.7,0.00541301]
[1738770575410,0.72687301,2771.2,2770.7,0.00541301]